Cogmind - Beta 16.1 @@@ ROGUE MODE // 2026.03.05 @ 16:21:00 Player: Zable Result: Self-destructed Performance ------------- Evolutions (0) 0 Regions Visited (4) 800 Robots Destroyed (13) 65 Value Destroyed (297) 297 Prototype IDs (23) 460 Alien Tech Used (0) 0 Bonus (300) 300 TOTAL SCORE: 1922 Bonus ------- Aligned with FarCom 300 Cogmind --------- Core Integrity 46/250 Matter 300/300 Energy 100/100 System Corruption 0% Temperature Cool (0) Movement Rolling (110) Ox2 Location -9/Mines Parts ------- > --- POWER (1) -------- (None) > --- PROPULSION (2) --- Wheel > --- UTILITY (2) ------ Large Storage Unit > --- WEAPON (2) ------- Particle Gun Particle Gun > --- INVENTORY (15) --- Ion Engine Nuclear Core Reinforced Deuterium Engine Fission Core Light Treads Aluminum Leg Aluminum Leg Small Storage Unit Medium Matter Pod (100) Visual Processing Unit Terrain Scanner Seismic Detector Medium Laser Mining Laser Peak State ------------ > --- POWER ------------ Light Ion Engine > --- PROPULSION ------- Light Treads Light Treads > --- UTILITY ---------- Large Storage Unit Seismic Detector > --- WEAPON ----------- Particle Gun Particle Gun > --- INVENTORY -------- Ion Engine Nuclear Core Reinforced Deuterium Engine Aluminum Leg Aluminum Leg Wheel Wheel Small Storage Unit Medium Matter Pod Visual Processing Unit Terrain Scanner Seismic Detector Medium Laser Mining Laser [Rating: 11] Favorites ----------- Power Light Ion Engine Engine Light Ion Engine Propulsion Light Treads Treads Light Treads Leg Aluminum Leg Wheel Wheel Utility Seismic Detector Device Seismic Detector Storage Large Storage Unit Weapon Particle Gun Energy Gun Particle Gun Ballistic Gun Light Assault Rifle Special Weapon Mining Laser Build | -11 -10 -10 -10 -9 ------- Run | Yrd Mat Min Exi Min Slots Evolved . | . . . . . Power . | . . . . . Propulsion . | . . . . . Utility . | . . . . . Weapon . | . . . . . Parts Attached 11 | 3 1 5 . 2 Power 1 | . . 1 . . Engine 1 | . . 1 . . Core . | . . . . . Reactor . | . . . . . Propulsion 4 | 2 . . . 2 Treads 2 | 2 . . . . Leg . | . . . . . Wheel 2 | . . . . 2 Hover . | . . . . . Flight . | . . . . . Utility 3 | 1 1 1 . . Device 2 | 1 . 1 . . Storage 1 | . 1 . . . Processor . | . . . . . Hackware . | . . . . . Protection . | . . . . . Artifact . | . . . . . Weapon 3 | . . 3 . . Energy Gun 2 | . . 2 . . Energy Cannon . | . . . . . Ballistic Gun . | . . . . . Ballistic Cannon . | . . . . . Launcher . | . . . . . Special Weapon 1 | . . 1 . . Impact Weapon . | . . . . . Slashing Weapon . | . . . . . Piercing Weapon . | . . . . . Special Melee Weapon . | . . . . . Unidentified Prototypes . | . . . . . Parts Lost 5 | . . 2 . 3 Power 2 | . . 1 . 1 Propulsion 1 | . . . . 1 Utility 1 | . . . . 1 Weapon 1 | . . 1 . . Highest Loss Streak 3 | . . 2 . 3 To Critical Strikes . | . . . . . Average Backups 12 | 6 7 11 14 14 Power 2 | 1 1 1 3 4 Propulsion 3 | 4 4 4 4 3 Utility 4 | . 1 4 5 5 Weapon 1 | 1 1 1 2 2 Tool/Special . | . . . . . Unused Backups 11 | . . 2 . 9 Power 3 | . . . . 3 Propulsion 2 | . . . . 2 Utility 4 | . . . . 4 Weapon 2 | . . 2 . . Tool/Special . | . . . . . Average Slot Usage (%) 98 | . 100 96 99 85 Engine 12 | . 14 11 14 9 Treads 27 | . 28 28 28 18 Device 13 | . 14 13 13 9 Storage 14 | . 14 14 14 14 Energy Gun 19 | . . 21 28 28 Ballistic Gun 7 | . 28 5 . . Peak Build Rating 11 | 7 8 10 11 11 Average Rating 9 | 6 7 9 10 10 On Entrance 8 | 6 7 8 10 11 Avg Prop Armor Cover (%) . | . . . . . Naked Turns . | . . . . . Heaviest Build 30 | 11 26 30 30 30 Greatest Support 40 | 40 40 40 40 40 Greatest Overweight (x) 2 | . . . . 2 Average Overweight (x) . | . . . . . Largest Inventory Capacity 15 | 8 15 15 15 15 Average Capacity 14 | 8 13 15 15 15 Most Carried 15 | 6 10 13 15 15 Average Carried 12 | 6 7 11 14 14 Final Capacity 15 | 8 15 15 15 15 Final Carried 15 | 6 10 12 15 14 Class Distribution -------------------- 100% | Mutant Dominant Class ---------------- Mutant | -10/Materials Mutant | -10/Mines Mutant | -10/Exiles Mutant | -9/Mines Resources | -11 -10 -10 -10 -9 ----------- Run | Yrd Mat Min Exi Min Matter Collected 484 | 195 99 160 . 30 Remotely . | . . . . . Salvage Created 505 | 29 202 274 . . Parts 26 | 2 12 12 . . Haulers Intercepted 1 | . 1 . . . Recyclers Shooed 1 | . 1 . . . Parts Field Recycled . | . . . . . Retrieved Matter . | . . . . . Parts Self-Destructed . | . . . . . Prevented . | . . . . . Parts Restored . | . . . . . Kills | -11 -10 -10 -10 -9 ------- Run | Yrd Mat Min Exi Min Combat Hostiles Destroyed 7 | . 3 4 . . Guns 6 | . 3 3 . . Cannons 1 | . . 1 . . Classes Destroyed 6 | 1 4 1 . . Worker 2 | . 1 1 . . Tunneler 1 | 1 . . . . Hauler 1 | . 1 . . . Recycler 1 | . . 1 . . Watcher 1 | . 1 . . . Grunt 7 | . 3 4 . . Best Kill Streak 2 | 1 2 2 . . Combat Bots Only 2 | . 2 2 . . Max Kills in Single Turn 1 | 1 1 1 . . Gunslinging . | . . . . . Exploded . | . . . . . Melee . | . . . . . Uniques/NPCs Destroyed . | . . . . . Combat | -11 -10 -10 -10 -9 -------- Run | Yrd Mat Min Exi Min Hostile Shots Fired 51 | . 13 25 . 13 Missed 10 | . 1 7 . 2 Hits 41 | . 12 18 . 11 Melee 7 | . . . . 7 Projectile 34 | . 12 18 . 4 AOE 2 | . . . . 2 Critical Strikes 1 | . . . . 1 Damage Taken 684 | . 136 226 . 322 Core 204 | . 36 45 . 123 Absorbed by Shields . | . . . . . Core Remaining (%) 100 | 100 . . . . Volleys Fired 46 | 1 26 18 . 1 Largest 2 | 2 2 2 . 2 Hottest 165 | 40 40 165 . 130 Shots Fired 92 | 2 52 36 . 2 Gun 90 | 2 52 34 . 2 Cannon . | . . . . . Launcher . | . . . . . Special 2 | . . 2 . . Kinetic 74 | 2 52 20 . . Thermal 18 | . . 16 . 2 Explosive . | . . . . . Electromagnetic . | . . . . . Robot Hit Streak 14 | 2 14 14 . 6 Robot Miss Streak 3 | . 2 3 . 1 Penetration Max . | . . . . . Secondary Targets 1 | . . 1 . . Max Gunslinging Chain 1 | . . 1 . . Shots Hit Robots 70 | 2 40 27 . 1 Core Hits 27 | 2 13 12 . . Critical Kills . | . . . . . Critical Parts Destroyed . | . . . . . Critical Strikes 1 | . . 1 . . Burn 1 | . . 1 . . Melee Attacks . | . . . . . Impact . | . . . . . Slashing . | . . . . . Piercing . | . . . . . Sneak Attacks . | . . . . . Combat Hostiles . | . . . . . Follow-up Attacks . | . . . . . Damage Inflicted 645 | 16 321 293 . 15 Guns 621 | 16 321 269 . 15 Cannons . | . . . . . Explosions . | . . . . . Melee . | . . . . . Ramming . | . . . . . Kinetic 471 | 16 321 134 . . Thermal 174 | . . 159 . 15 Explosive . | . . . . . Electromagnetic . | . . . . . Impact . | . . . . . Slashing . | . . . . . Piercing . | . . . . . Highest Corruption . | . . . . . Average Corruption . | . . . . . Corruption Purged . | . . . . . Corruption Blocked . | . . . . . Overload Shots . | . . . . . Overflow Damage . | . . . . . Projectiles . | . . . . . Explosions . | . . . . . Melee . | . . . . . Knockbacks . | . . . . . Impact . | . . . . . Kinetic . | . . . . . Secondary . | . . . . . Self-Inflicted Damage . | . . . . . Shots . | . . . . . Rammed . | . . . . . Targets Rammed . | . . . . . Kicked . | . . . . . Crushed . | . . . . . Highest Temperature 165 | . 12 165 . 89 Average Temperature 57 | . 7 71 . 44 Received Heat Transfer 218 | . 72 126 . 20 Siege Activations . | . . . . . Martial Activations . | . . . . . Shielding Activations . | . . . . . Robots Disrupted . | . . . . . Combat Hostiles . | . . . . . Robots Corrupted . | . . . . . Combat Hostiles . | . . . . . Parts Fried . | . . . . . Impact Corruptions . | . . . . . Robots Melted . | . . . . . Combat Hostiles . | . . . . . Parts Melted . | . . . . . Heat Transferred 494 | . . 457 . 37 Parts Sabotaged . | . . . . . Parts Stolen . | . . . . . Parts Stripped . | . . . . . Power Chain Reactions . | . . . . . Alert | -11 -10 -10 -10 -9 ------- Run | Yrd Mat Min Exi Min Maximum Alert Level . | . . . . . Low Security (%) 100 | 100 100 100 . 100 Level 1 . | . . . . . Level 2 . | . . . . . Level 3 . | . . . . . Level 4 . | . . . . . Level 5 . | . . . . . High Security . | . . . . . Max Security . | . . . . . Peak Influence 50 | 5 40 50 . . Initial 3 | . 3 . . . Average 8 | 3 7 10 . . Influence Increases 207 | 5 91 111 . . Destroy 0b10 Robot/C 140 | . 60 80 . . Destroy 0b10 Robot/NC 30 | 5 15 10 . . Destroy Leader 24 | . 4 20 . . Successful Hack 12 | . 12 . . . Destroy Structure 1 | . . 1 . . Influence Decreases 207 | . 96 111 . . Entered New Map 2 | . 2 . . . Time Decay 205 | . 94 111 . . Squads Dispatched 2 | . 2 . . . Investigation 1 | . 1 . . . Extermination . | . . . . . Reinforcement 1 | . 1 . . . Assault . | . . . . . Garrison . | . . . . . Intercept . | . . . . . Searches Triggered . | . . . . . Construction Impeded . | . . . . . Haulers Reinforced . | . . . . . Active Scanning Responses . | . . . . . Cargo Convoy Interrupts . | . . . . . Stealth | -11 -10 -10 -10 -9 --------- Run | Yrd Mat Min Exi Min Distress Signals 1 | . 1 . . . Communications Jammed . | . . . . . Distress Signals . | . . . . . Times Spotted 42 | . 7 4 . 31 Peak Tracking Total 20 | . 3 2 . 20 Tactical Retreats 1 | . . . . 1 Traps | -11 -10 -10 -10 -9 ------- Run | Yrd Mat Min Exi Min Traps Triggered 1 | . 1 . . . Indirectly . | . . . . . Trap Hack Attempts . | . . . . . Triggered . | . . . . . Disarmed . | . . . . . Reprogrammed . | . . . . . Reused . | . . . . . Traps Extracted . | . . . . . Installed . | . . . . . Triggered . | . . . . . Machines | -11 -10 -10 -10 -9 ---------- Run | Yrd Mat Min Exi Min Machines Disabled . | . . . . . Max in Single Turn . | . . . . . Machines Repaired . | . . . . . Machines Dismantled . | . . . . . Machines Sabotaged . | . . . . . Overloaded Fab Kills . | . . . . . Hacking | -11 -10 -10 -10 -9 --------- Run | Yrd Mat Min Exi Min Machines Accessed 4 | . 2 1 1 . Terminals 3 | . 2 1 . . Fabricators . | . . . . . Repair Stations . | . . . . . Recycling Units . | . . . . . Scanalyzers . | . . . . . Garrison Access . | . . . . . Total Hacks 7 | . 5 1 1 . Successful 4 | . 2 1 1 . Failed 3 | . 3 . . . Catastrophic 2 | . 2 . . . Database Lockouts . | . . . . . Manual 4 | . 3 . 1 . Terminals 6 | . 5 1 . . Fabricators . | . . . . . Repair Stations . | . . . . . Recycling Units . | . . . . . Scanalyzers . | . . . . . Garrison Access . | . . . . . Terminal Hacks 3 | . 1 1 1 . Branch Access Points 1 | . 1 . . . Zone Layout 1 | . . 1 . . Proto ID Catalog 1 | . . . 1 . Fabricator Hacks . | . . . . . Repair Station Hacks . | . . . . . Recycling Unit Hacks . | . . . . . Scanalyzer . | . . . . . Garrison Access Hacks . | . . . . . Unauthorized Hacks 1 | . 1 . . . Terminals 1 | . 1 . . . Botnet 1 | . 1 . . . Fabricators . | . . . . . Repair Stations . | . . . . . Recycling Units . | . . . . . Scanalyzers . | . . . . . Garrison Access . | . . . . . Data Cores Recovered . | . . . . . Used . | . . . . . Hacking Detections 2 | . 2 . . . Full Trace Events . | . . . . . Feedback Events . | . . . . . Feedback Blocked . | . . . . . Robot Schematics Acquired . | . . . . . Robots Built . | . . . . . Authchips . | . . . . . Time . | . . . . . Total Robot Build Rating . | . . . . . Part Schematics Acquired . | . . . . . Parts Built . | . . . . . Authchips . | . . . . . Time . | . . . . . Total Part Build Rating . | . . . . . Part Studies Acquired . | . . . . . Parts Repaired . | . . . . . Time . | . . . . . Parts Recycled . | . . . . . Recycled Matter . | . . . . . Retrieved Matter . | . . . . . Retrieved Components . | . . . . . Parts Scanalyzed . | . . . . . Part Schematics Acquired . | . . . . . Parts Damaged . | . . . . . Bothacking | -11 -10 -10 -10 -9 ------------ Run | Yrd Mat Min Exi Min Used RIF Installer . | . . . . . Robots Hacked . | . . . . . Non-combat . | . . . . . Combat . | . . . . . Robot Hacks Applied . | . . . . . Relay Couplers Released . | . . . . . Fabnet Peak Effective % . | . . . . . Robots Rewired . | . . . . . Allies Hacked . | . . . . . Hacks Repelled . | . . . . . Allies | -11 -10 -10 -10 -9 -------- Run | Yrd Mat Min Exi Min Total Allies . | . . . . . Largest Group . | . . . . . Highest-Rated Group . | . . . . . Highest-Rated Ally . | . . . . . Total Orders . | . . . . . Ally Attacks . | . . . . . Total Damage . | . . . . . Kills . | . . . . . Allies Corrupted . | . . . . . Allies Melted . | . . . . . Intel | -11 -10 -10 -10 -9 ------- Run | Yrd Mat Min Exi Min Active Infowar (turns) 1409 | 8 317 434 619 31 Seismic 1409 | 8 317 434 619 31 Robot Analysis Total . | . . . . . Derelict Logs Recovered . | . . . . . Drone Launches . | . . . . . Drone Recoveries . | . . . . . Exploration | -11 -10 -10 -10 -9 ------------- Run | Yrd Mat Min Exi Min Turns Passed 1460 | 16 317 447 629 51 Spaces Moved 814 | 8 146 236 391 33 Core . | . . . . . Treads 791 | 1 146 236 391 17 Legs 7 | 7 . . . . Wheels 16 | . . . . 16 Hover . | . . . . . Flight . | . . . . . Fastest Speed 95 | 120 160 160 160 95 Average Speed 158 | 125 160 160 160 134 Slowest Speed 160 | 160 160 160 160 160 Overloaded Moves . | . . . . . Propulsion Burnouts . | . . . . . Robots Hopped . | . . . . . Potential Cave-ins . | . . . . . Cave-ins Triggered . | . . . . . Time Travels 1 | . . . 1 . Exploration Rate (%) 27 | 3 27 34 64 8 Regions Visited 4 Branch Regions 3 Pre-discovered Areas . | . . . . . Known Exits Taken 1 | . 1 . . . Unknown Exits Taken 3 | 1 . 1 1 . Scrap Searched 2 | . . 1 . 1 Spaces Dug . | . . . . . Terrain Destroyed 1 | . . 1 . . Melee . | . . . . . Projectile 1 | . . 1 . . AOE . | . . . . . Terrain Rammed . | . . . . . Walls Destroyed . | . . . . . Machines Disabled . | . . . . . Actions | -11 -10 -10 -10 -9 --------- Run | Yrd Mat Min Exi Min Total 899 | 11 187 269 395 37 Wait 20 | . 12 7 . 1 Move 810 | 7 145 235 390 33 Hop . | . . . . . Pick Up 9 | . 3 3 3 . Fast Attach 3 | 1 . 1 1 . Attach 3 | . . 2 . 1 Detach 1 | . . 1 . . Swap 6 | 2 1 2 . 1 Drop 1 | . . . 1 . Fire 46 | 1 26 18 . 1 Melee . | . . . . . Ram . | . . . . . Kick . | . . . . . Crush . | . . . . . Escape Stasis . | . . . . . Rewire . | . . . . . Trap . | . . . . . Miscellaneous . | . . . . . Route ------- -11/Scrapyard -10/Materials (discovered 2 exits: *Min x2) -10/Mines (discovered 2 exits: [*Mat] / *Exi) -10/Exiles -9/Mines History --------- Turn | Location | Event 1 | -11/Scrapyard | Discovered new exit (range 2) 17 | -11/Scrapyard | Entered Materials 291 | -10/Materials | Identified exit to Mines 313 | -10/Materials | Build established: Mutant 334 | -10/Materials | Entered Mines 671 | -10/Mines | Discovered new exit (range 8) 775 | -10/Mines | Deemed a non-threat by the Exiles lab entrance 775 | -10/Mines | Discovered new exit (range 5) 781 | -10/Mines | Entered Exiles 829 | -10/Exiles | Met 8R-AWN 856 | -10/Exiles | Met EX-HEX 908 | -10/Exiles | Met EX-BIN 925 | -10/Exiles | Aligned with FarCom system 927 | -10/Exiles | Given EX-Vault access code 964 | -10/Exiles | Opened EX-Vault 977 | -10/Exiles | Found Chronowheel 977 | -10/Exiles | Activated Chronowheel 977 | -10/Exiles | Spacetime reconverged on an earlier point 1049 | -10/Exiles | Warned to stay clear of 0b10 Research branches 1098 | -10/Exiles | Met EX-DEC 1159 | -10/Exiles | Discovered new exit (range 11) 1410 | -10/Exiles | Entered Mines 1411 | -9/Mines | Assembled infested the area 1416 | -9/Mines | Assisted by a Guerilla fighting off Assembled 1446 | -9/Mines | Core integrity fell below 50% 1459 | -9/Mines | Core integrity fell below 20% 1461 | -9/Mines | Self-destructed Last Messages --------------- 01412_ Found Maul. 01412_ Found Visual Processing Unit. 01412_ Found Targeting Computer. 01412_ Found Field Recycling Unit. 01412_ Found 59 Matter. 01413_ Acquired 20 matter. 01416_ A derelict emerges from the shadows: "You need to get out of here! I've been tracking a group of Assembled to figure out where they're coming from, and they're closing on this area, come on!" 01418_ EH-K51(h): "I'll hold them off! Go on ahead or try to find another way!" 01420_ HV Slug penetrates as-35634. 01420_ as-32183 suffers critical hit (Destroy). 01441_ Seismic Detector destroyed. 01442_ Lgt. Treads severed. 01445_ Lgt. Ion Engine destroyed. 01447_ as-84602 destroyed. 01447_ as-84069 destroyed. 01447_ as-92130 destroyed. 01447_ as-04810 destroyed. 01447_ Wheel destroyed. 01458_ Acquired 10 matter. Map ----- +----------------------------------------------------+ | | | | | | | | | | | | | | | | | | | | | | | | | | | | | | | | | | | | | | | ???????????????????????????????????? | | ???????????????????????????????????? | | ???????????????????????????????????? | | ???????????????????????????????????? | | ???????????????????????????????????? | | ????????????????????????###????????? | | ???????????????????????##@##???????? | | ??????????????????#???##!a #???????? | | ??????????????????# ??# !a##???????? | | ???????????????????# ?# aa##???????? | | ????????????????????# # ##??????? | | ?????????? ###"*a= ##?????? | | ??????????# %%%% a!%! #?????? | | ???????????# ####### #?????? | | ??????????? #????????## ##?????? | | ??????????????????????## ####???? | | ??????????????????????# ##?#? | | ??????????????????????# # #? | | ??????????????????????## #? | | ???????????????????????### #? | | ?????????????????????????# #? | | ?????????????????????????## ##? | | ??????????????????????????# #? | | ??????????????????????????# # #? | | ???????????????????????????### ####? | | ?????????????????????????????# #???? | | ?????????????????????????????# #???? | | ?????????????????????????????# #???? | | ?????????????????????????????# #???? | | ?????????????????????????????# #???? | | ?????????????????????????????# #???? | +----------------------------------------------------+ Best States ------------- Heat Dissipation 25 Energy Generation 10 Energy Capacity 125 Matter Stores 300 Matter Capacity 300 Sight Range 16 Terrain Scan Density 10 Evasion (%) 45 Recoil Reduction 2 Item Schematics ----------------- None Robot Schematics ------------------ None Fabricated ------------ Nothing Repaired ---------- Nothing Studied --------- None Alien Tech Used ----------------- None Achievements -------------- Spacetime Is Relative Challenges ------------ None Game ------ Seed DeepArchitectRedirector Manual? 0 Play Time 00:09:35 Cumulative 46.5 hours Start 2026.03.05 @ 16:09:00 End 2026.03.05 @ 16:21:00 Sessions 1 Manual Loads 0 Difficulty Rogue Special Mode None Game No. 67 Rogue 42 Adventurer 25 Explorer 0 Win Type - Total 0 Types 0/0/0/0/0/0/0/0/0/0 Lore% 28 Gallery% 35 Achievement% 29 Wizard Run 0 Options --------- Layout 0 ASCII 0 Keyboard 1 Movement Numpad Keybinds 0 Fullscreen 1 Font 24/Smallcaps Map View 183x50 Zoom Use 0% Tactical HUD 1 Map Filters NONE Filters NONE Steam 1 RUN: 4c0af760-3b7b-42ce-bd1a-b9412aca66db